[Event "New Zealand Championship 2023"]
[Site "Wellington"]
[ePGN "0.1;DGT LiveChess/2.2.5"]
[Date "2023.01.10"]
[Round "9.1"]
[White "Rains, Edward"]
[Black "Moradiabadi, Elshan"]
[Result "1/2-1/2"]
[TimeControl "90 mins + 30 mins (after 40 moves), additional 30 secs per move"]
[WhiteTitle "CM"]
[BlackTitle "GM"]
[WhiteFideId "4302940"]
[BlackFideId "12501255"]
[WhiteElo "2180"]
[BlackElo "2514"]

1. e4 {[%clk 01:30:51]} {[%emt 00:00:06]} c5 {[%clk 01:29:49]} {[%emt
00:01:13]} 2. Nc3 {[%clk 01:31:10]} {[%emt 00:00:11]} e6 {[%clk 01:30:16]}
{[%emt 00:00:03]} 3. Nge2 {[%clk 01:31:31]} {[%emt 00:00:09]} Nc6 {[%clk
01:29:37]} {[%emt 00:01:10]} 4. g3 {[%clk 01:31:40]} {[%emt 00:00:19]} d5
{[%clk 01:28:05]} {[%emt 00:02:02]} 5. exd5 {[%clk 01:31:57]} {[%emt 00:00:14]}
exd5 {[%clk 01:28:34]} {[%emt 00:00:01]} 6. d4 {[%clk 01:32:12]} {[%emt
00:00:14]} Bg4 {[%clk 01:27:16]} {[%emt 00:01:49]} 7. Bg2 {[%clk 01:32:26]}
{[%emt 00:00:16]} Nxd4 {[%clk 01:23:07]} {[%emt 00:04:39]} 8. h3 {[%clk
01:32:31]} {[%emt 00:00:24]} Bf3 {[%clk 01:23:33]} {[%emt 00:00:05]} 9. Kf1
{[%clk 01:32:41]} {[%emt 00:00:20]} Qf6 {[%clk 01:13:07]} {[%emt 00:10:57]} 10.
Bf4 {[%clk 01:27:29]} {[%emt 00:05:41]} Nxe2 {[%clk 01:01:51]} {[%emt
00:11:46]} 11. Bxf3 {[%clk 01:23:30]} {[%emt 00:04:28]} Nxf4 {[%clk 01:02:17]}
{[%emt 00:00:04]} 12. gxf4 {[%clk 01:16:39]} {[%emt 00:07:21]} O-O-O {[%clk
01:02:01]} {[%emt 00:00:47]} 13. Nxd5 {[%clk 01:15:43]} {[%emt 00:01:26]} Qe6
{[%clk 00:59:09]} {[%emt 00:03:16]} 14. c4 {[%clk 01:12:50]} {[%emt 00:03:29]}
Ne7 {[%clk 00:57:30]} {[%emt 00:02:09]} 15. Qa4 {[%clk 01:09:07]} {[%emt
00:04:13]} Nxd5 {[%clk 00:57:32]} {[%emt 00:00:28]} 16. Bxd5 {[%clk 01:08:26]}
{[%emt 00:01:10]} Qb6 {[%clk 00:58:01]} {[%emt 00:00:01]} 17. Rb1 {[%clk
01:05:46]} {[%emt 00:03:10]} Bd6 {[%clk 00:57:33]} {[%emt 00:00:59]} 18. Rg1
{[%clk 01:02:21]} {[%emt 00:03:55]} Bxf4 {[%clk 00:46:06]} {[%emt 00:11:57]} 19.
Rxg7 {[%clk 00:56:03]} {[%emt 00:06:47]} Rd7 {[%clk 00:21:13]} {[%emt
00:25:24]} 20. Re1 {[%clk 00:39:09]} {[%emt 00:17:24]} Rhd8 {[%clk 00:14:48]}
{[%emt 00:06:56]} 21. Rxf7 {[%clk 00:34:15]} {[%emt 00:05:23]} Rxf7 {[%clk
00:13:48]} {[%emt 00:01:30]} 22. Bxf7 {[%clk 00:34:38]} {[%emt 00:00:06]} a6
{[%clk 00:14:16]} {[%emt 00:00:03]} 23. Re8 {[%clk 00:32:34]} {[%emt 00:02:33]}
Kb8 {[%clk 00:14:31]} {[%emt 00:00:16]} 1/2-1/2

[Event "New Zealand Championship 2023"]
[Site "Wellington"]
[Date "2023.01.10"]
[Round "9.3"]
[White "Shoker, Samy"]
[Black "Croad, Nicolas"]
[Result "1-0"]
[TimeControl "90 mins + 30 mins (after 40 moves), additional 30 secs per move"]
[WhiteTitle "GM"]
[BlackTitle "FM"]
[WhiteFideId "627143"]
[BlackFideId "4300793"]
[WhiteElo "2491"]
[BlackElo "2442"]

1. Nf3 {[%clk 01:30:57]} {[%emt 00:00:03]} d5 {[%clk 01:30:55]} {[%emt
00:00:06]} 2. g3 {[%clk 01:31:22]} {[%emt 00:00:05]} Bg4 {[%clk 01:31:19]}
{[%emt 00:00:05]} 3. Bg2 {[%clk 01:31:48]} {[%emt 00:00:04]} Nd7 {[%clk
01:31:42]} {[%emt 00:00:07]} 4. d3 {[%clk 01:25:18]} {[%emt 00:07:00]} c6
{[%clk 01:27:10]} {[%emt 00:05:02]} 5. Nbd2 {[%clk 01:24:05]} {[%emt 00:01:43]}
e6 {[%clk 01:26:11]} {[%emt 00:01:29]} 6. h3 {[%clk 01:23:01]} {[%emt
00:01:34]} Bh5 {[%clk 01:26:27]} {[%emt 00:00:14]} 7. O-O {[%clk 01:22:42]}
{[%emt 00:00:48]} Be7 {[%clk 01:19:37]} {[%emt 00:07:20]} 8. c4 {[%clk
01:22:28]} {[%emt 00:00:44]} Ngf6 {[%clk 01:19:40]} {[%emt 00:00:27]} 9. b3
{[%clk 01:22:52]} {[%emt 00:00:06]} O-O {[%clk 01:19:38]} {[%emt 00:00:31]} 10.
Bb2 {[%clk 01:23:19]} {[%emt 00:00:03]} a5 {[%clk 01:18:09]} {[%emt 00:01:59]}
11. a3 {[%clk 01:23:44]} {[%emt 00:00:06]} b5 {[%clk 01:14:33]} {[%emt
00:04:06]} 12. Qc2 {[%clk 01:21:50]} {[%emt 00:02:24]} bxc4 {[%clk 01:11:54]}
{[%emt 00:03:09]} 13. bxc4 {[%clk 01:22:01]} {[%emt 00:00:19]} Qb6 {[%clk
01:07:49]} {[%emt 00:04:35]} 14. Rab1 {[%clk 01:18:54]} {[%emt 00:03:37]} Qa6
{[%clk 01:07:34]} {[%emt 00:00:45]} 15. g4 {[%clk 01:14:27]} {[%emt 00:04:58]}
Bg6 {[%clk 01:07:56]} {[%emt 00:00:07]} 16. Nh4 {[%clk 01:14:22]} {[%emt
00:00:35]} Rfd8 {[%clk 00:52:02]} {[%emt 00:16:24]} 17. e3 {[%clk 01:01:34]}
{[%emt 00:13:18]} Ne8 {[%clk 00:51:36]} {[%emt 00:00:57]} 18. Nxg6 {[%clk
01:01:32]} {[%emt 00:00:31]} hxg6 {[%clk 00:52:01]} {[%emt 00:00:05]} 19. f4
{[%clk 01:00:26]} {[%emt 00:01:36]} Nd6 {[%clk 00:46:36]} {[%emt 00:05:55]} 20.
c5 {[%clk 00:57:01]} {[%emt 00:03:55]} Ne8 {[%clk 00:45:30]} {[%emt 00:01:36]}
21. d4 {[%clk 00:57:25]} {[%emt 00:00:06]} Rdb8 {[%clk 00:41:49]} {[%emt
00:04:11]} 22. a4 {[%clk 00:52:04]} {[%emt 00:05:51]} Bd8 {[%clk 00:38:53]}
{[%emt 00:03:26]} 23. e4 {[%clk 00:43:35]} {[%emt 00:08:58]} dxe4 {[%clk
00:34:46]} {[%emt 00:04:38]} 24. Qxe4 {[%clk 00:43:11]} {[%emt 00:00:54]} Rc8
{[%clk 00:34:41]} {[%emt 00:00:36]} 25. g5 {[%clk 00:43:03]} {[%emt 00:00:37]}
Rab8 {[%clk 00:34:00]} {[%emt 00:01:11]} 26. Bc3 {[%clk 00:42:13]} {[%emt
00:01:20]} Kf8 {[%clk 00:29:46]} {[%emt 00:04:44]} 27. Rfe1 {[%clk 00:39:06]}
{[%emt 00:03:38]} Qa7 {[%clk 00:26:19]} {[%emt 00:04:03]} 28. Nc4 {[%clk
00:38:01]} {[%emt 00:01:29]} Bc7 {[%clk 00:23:52]} {[%emt 00:02:57]} 29. Bd2
{[%clk 00:27:50]} {[%emt 00:10:40]} Bd8 {[%clk 00:21:07]} {[%emt 00:03:16]} 30.
h4 {[%clk 00:27:55]} {[%emt 00:00:25]} Nc7 {[%clk 00:19:09]} {[%emt 00:02:28]}
31. Rxb8 {[%clk 00:27:07]} {[%emt 00:01:18]} Rxb8 {[%clk 00:16:59]} {[%emt
00:02:40]} 32. Nxa5 {[%clk 00:21:27]} {[%emt 00:06:10]} Rb2 {[%clk 00:14:42]}
{[%emt 00:02:46]} 33. Nxc6 {[%clk 00:21:33]} {[%emt 00:00:24]} Qxa4 {[%clk
00:14:52]} {[%emt 00:00:20]} 34. Bc1 {[%clk 00:21:40]} {[%emt 00:00:23]} f5
{[%clk 00:10:16]} {[%emt 00:05:07]} 35. gxf6 {[%clk 00:20:17]} {[%emt
00:01:53]} Nxf6 {[%clk 00:10:40]} {[%emt 00:00:05]} 36. Qxg6 {[%clk 00:20:07]}
{[%emt 00:00:41]} Ra2 {[%clk 00:10:45]} {[%emt 00:00:24]} 37. Be3 {[%clk
00:17:52]} {[%emt 00:02:45]} Ra1 {[%clk 00:10:02]} {[%emt 00:01:14]} 38. Rxa1
{[%clk 00:17:11]} {[%emt 00:01:10]} Qxa1+ {[%clk 00:10:28]} {[%emt 00:00:04]}
39. Kh2 {[%clk 00:15:49]} {[%emt 00:01:52]} Qe1 {[%clk 00:08:57]} {[%emt
00:02:01]} 40. Nxd8 {[%clk 00:45:44]} {[%emt 00:00:35]} Kg8 {[%clk 00:38:44]}
{[%emt 00:00:43]} 41. Bg1 {[%clk 00:40:40]} {[%emt 00:05:33]} Qxh4+ {[%clk
00:34:16]} {[%emt 00:04:58]} 42. Bh3 {[%clk 00:41:05]} {[%emt 00:00:05]} Qxf4+
{[%clk 00:34:16]} {[%emt 00:00:38]} 43. Qg3 {[%clk 00:41:11]} {[%emt 00:00:16]}
Qd2+ {[%clk 00:34:21]} {[%emt 00:00:25]} 44. Kh1 {[%clk 00:38:25]} {[%emt
00:03:15]} Qh6 {[%clk 00:32:43]} {[%emt 00:02:10]} 45. Qe3 {[%clk 00:37:18]}
{[%emt 00:01:36]} Qh4 {[%clk 00:25:42]} {[%emt 00:07:32]} 46. Nxe6 {[%clk
00:36:39]} {[%emt 00:01:08]} Ncd5 {[%clk 00:24:57]} {[%emt 00:01:15]} 47. Bf2
{[%clk 00:34:50]} {[%emt 00:02:19]} Qh5 {[%clk 00:25:02]} {[%emt 00:00:25]} 48.
Qg3 {[%clk 00:35:03]} {[%emt 00:00:15]} g6 {[%clk 00:19:09]} {[%emt 00:06:26]}
49. Qb8+ {[%clk 00:34:03]} {[%emt 00:01:31]} 1-0

[Event "New Zealand Championship 2023"]
[Site "Wellington"]
[Date "2023.01.10"]
[Round "9.4"]
[White "Zhang, Jasmine Haomo"]
[Black "Ker, Anthony F"]
[Result "0-1"]
[TimeControl "90 mins + 30 mins (after 40 moves), additional 30 secs per move"]
[WhiteTitle "WIM"]
[BlackTitle "IM"]
[WhiteFideId "4304632"]
[BlackFideId "4300084"]
[WhiteElo "2117"]
[BlackElo "2425"]

1. d4 {[%clk 01:30:56]} {[%emt 00:00:04]} Nf6 {[%clk 01:30:52]} {[%emt
00:00:08]} 2. Bf4 {[%clk 01:31:17]} {[%emt 00:00:08]} e6 {[%clk 01:31:15]}
{[%emt 00:00:08]} 3. e3 {[%clk 01:31:40]} {[%emt 00:00:07]} c5 {[%clk
01:31:32]} {[%emt 00:00:13]} 4. Nd2 {[%clk 01:31:59]} {[%emt 00:00:11]} Be7
{[%clk 01:31:29]} {[%emt 00:00:33]} 5. c3 {[%clk 01:32:13]} {[%emt 00:00:17]}
b6 {[%clk 01:30:52]} {[%emt 00:01:07]} 6. h3 {[%clk 01:32:16]} {[%emt
00:00:26]} Bb7 {[%clk 01:31:06]} {[%emt 00:00:17]} 7. Ngf3 {[%clk 01:32:33]}
{[%emt 00:00:12]} cxd4 {[%clk 01:30:51]} {[%emt 00:00:45]} 8. exd4 {[%clk
01:32:57]} {[%emt 00:00:06]} d6 {[%clk 01:31:02]} {[%emt 00:00:19]} 9. Bd3
{[%clk 01:32:36]} {[%emt 00:00:51]} Nbd7 {[%clk 01:30:59]} {[%emt 00:00:33]} 10.
Nc4 {[%clk 01:26:49]} {[%emt 00:06:17]} Qc7 {[%clk 01:30:49]} {[%emt 00:00:40]}
11. a4 {[%clk 01:27:07]} {[%emt 00:00:13]} O-O {[%clk 01:30:16]} {[%emt
00:01:03]} 12. O-O {[%clk 01:27:07]} {[%emt 00:00:29]} Rfe8 {[%clk 01:18:24]}
{[%emt 00:12:23]} 13. Re1 {[%clk 01:27:06]} {[%emt 00:00:31]} Bf8 {[%clk
01:18:11]} {[%emt 00:00:43]} 14. Bh2 {[%clk 01:23:35]} {[%emt 00:04:02]} g6
{[%clk 01:16:38]} {[%emt 00:02:02]} 15. Nfd2 {[%clk 01:15:14]} {[%emt
00:08:50]} Qc6 {[%clk 01:14:10]} {[%emt 00:02:59]} 16. Ne3 {[%clk 01:13:57]}
{[%emt 00:01:47]} a6 {[%clk 01:13:32]} {[%emt 00:01:09]} 17. c4 {[%clk
01:08:08]} {[%emt 00:06:19]} Bh6 {[%clk 01:02:34]} {[%emt 00:11:27]} 18. f3
{[%clk 01:04:31]} {[%emt 00:04:07]} d5 {[%clk 00:58:29]} {[%emt 00:04:36]} 19.
Rc1 {[%clk 01:02:04]} {[%emt 00:02:57]} Rac8 {[%clk 00:56:57]} {[%emt
00:02:02]} 20. Bf1 {[%clk 00:46:40]} {[%emt 00:15:54]} e5 {[%clk 00:46:49]}
{[%emt 00:10:37]} 21. dxe5 {[%clk 00:41:12]} {[%emt 00:05:58]} Nxe5 {[%clk
00:47:03]} {[%emt 00:00:17]} 22. f4 {[%clk 00:39:50]} {[%emt 00:01:51]} Nxc4
{[%clk 00:39:59]} {[%emt 00:07:34]} 23. Ndxc4 {[%clk 00:35:15]} {[%emt
00:05:05]} dxc4 {[%clk 00:40:21]} {[%emt 00:00:08]} 24. Rxc4 {[%clk 00:35:04]}
{[%emt 00:00:41]} Qe6 {[%clk 00:36:41]} {[%emt 00:04:10]} 25. Nc2 {[%clk
00:30:52]} {[%emt 00:04:42]} Qd5 {[%clk 00:35:27]} {[%emt 00:01:44]} 26. Rxe8+
{[%clk 00:30:18]} {[%emt 00:01:04]} Rxe8 {[%clk 00:35:29]} {[%emt 00:00:28]} 27.
Rd4 {[%clk 00:30:20]} {[%emt 00:00:28]} Qc6 {[%clk 00:33:54]} {[%emt 00:02:05]}
28. Rc4 {[%clk 00:20:46]} {[%emt 00:10:03]} Qd5 {[%clk 00:31:43]} {[%emt
00:02:41]} 29. Rd4 {[%clk 00:19:15]} {[%emt 00:02:01]} Qc6 {[%clk 00:24:52]}
{[%emt 00:07:22]} 30. Rc4 {[%clk 00:18:22]} {[%emt 00:01:23]} Qe6 {[%clk
00:24:57]} {[%emt 00:00:24]} 31. Rc7 {[%clk 00:14:48]} {[%emt 00:04:05]} Qe4
{[%clk 00:24:34]} {[%emt 00:00:53]} 32. Rc4 {[%clk 00:13:54]} {[%emt 00:01:24]}
Qe7 {[%clk 00:24:38]} {[%emt 00:00:26]} 33. f5 {[%clk 00:12:30]} {[%emt
00:01:54]} Be3+ {[%clk 00:22:46]} {[%emt 00:02:23]} 34. Nxe3 {[%clk 00:09:58]}
{[%emt 00:03:02]} Qxe3+ {[%clk 00:23:08]} {[%emt 00:00:07]} 35. Kh1 {[%clk
00:10:25]} {[%emt 00:00:03]} Ne4 {[%clk 00:23:12]} {[%emt 00:00:26]} 36. Bg1
{[%clk 00:05:35]} {[%emt 00:05:20]} Ng3+ {[%clk 00:22:17]} {[%emt 00:01:24]} 37.
Kh2 {[%clk 00:06:00]} {[%emt 00:00:05]} Qe5 {[%clk 00:22:34]} {[%emt 00:00:14]}
38. Bd3 {[%clk 00:05:58]} {[%emt 00:00:32]} Ne2+ {[%clk 00:17:35]} {[%emt
00:05:29]} 39. Kh1 {[%clk 00:06:18]} {[%emt 00:00:09]} Bxg2+ {[%clk 00:17:58]}
{[%emt 00:00:07]} 40. Kxg2 {[%clk 00:36:31]} {[%emt 00:00:17]} Qg3+ {[%clk
00:48:23]} {[%emt 00:00:06]} 41. Kh1 {[%clk 00:31:20]} {[%emt 00:05:41]} Qxh3+
{[%clk 00:48:44]} {[%emt 00:00:10]} 42. Bh2 {[%clk 00:31:43]} {[%emt 00:00:07]}
Qf3# {[%clk 00:49:05]} {[%emt 00:00:05]} 0-1

[Event "New Zealand Championship 2023"]
[Site "Wellington"]
[Date "2023.01.10"]
[Round "9.5"]
[White "Winter, Ryan"]
[Black "Smith, Robert W"]
[Result "1-0"]
[TimeControl "90 mins + 30 mins (after 40 moves), additional 30 secs per move"]
[BlackTitle "FM"]
[WhiteFideId "4306295"]
[BlackFideId "4300190"]
[WhiteElo "2209"]
[BlackElo "2283"]

1. e4 {[%clk 01:30:58]} {[%emt 00:00:01]} c5 {[%clk 01:30:56]} {[%emt
00:00:04]} 2. Nf3 {[%clk 01:31:16]} {[%emt 00:00:11]} d6 {[%clk 01:31:19]}
{[%emt 00:00:08]} 3. d4 {[%clk 01:31:38]} {[%emt 00:00:08]} cxd4 {[%clk
01:31:42]} {[%emt 00:00:07]} 4. Nxd4 {[%clk 01:32:03]} {[%emt 00:00:04]} Nf6
{[%clk 01:32:07]} {[%emt 00:00:05]} 5. Nc3 {[%clk 01:32:29]} {[%emt 00:00:05]}
a6 {[%clk 01:32:34]} {[%emt 00:00:04]} 6. Be2 {[%clk 01:32:41]} {[%emt
00:00:17]} e5 {[%clk 01:30:54]} {[%emt 00:02:10]} 7. Nb3 {[%clk 01:33:03]}
{[%emt 00:00:07]} Be6 {[%clk 01:30:22]} {[%emt 00:01:02]} 8. O-O {[%clk
01:31:24]} {[%emt 00:02:09]} Be7 {[%clk 01:29:17]} {[%emt 00:01:36]} 9. f4
{[%clk 01:27:37]} {[%emt 00:04:18]} Qc7 {[%clk 01:25:32]} {[%emt 00:04:15]} 10.
Kh1 {[%clk 01:16:02]} {[%emt 00:12:04]} Nbd7 {[%clk 01:25:05]} {[%emt
00:00:58]} 11. a4 {[%clk 01:11:54]} {[%emt 00:04:39]} Rc8 {[%clk 01:23:29]}
{[%emt 00:02:06]} 12. a5 {[%clk 01:02:05]} {[%emt 00:10:19]} O-O {[%clk
01:20:03]} {[%emt 00:03:55]} 13. f5 {[%clk 00:54:36]} {[%emt 00:07:58]} Bc4
{[%clk 01:20:27]} {[%emt 00:00:06]} 14. Ra4 {[%clk 00:49:40]} {[%emt 00:05:26]}
Bxe2 {[%clk 01:20:40]} {[%emt 00:00:17]} 15. Qxe2 {[%clk 00:50:04]} {[%emt
00:00:06]} Qc6 {[%clk 01:02:40]} {[%emt 00:18:31]} 16. Rd1 {[%clk 00:45:32]}
{[%emt 00:05:02]} h6 {[%clk 00:59:01]} {[%emt 00:04:19]} 17. Be3 {[%clk
00:42:31]} {[%emt 00:03:22]} Rfd8 {[%clk 00:57:03]} {[%emt 00:02:26]} 18. Bf2
{[%clk 00:38:31]} {[%emt 00:04:30]} Nc5 {[%clk 00:51:04]} {[%emt 00:06:28]} 19.
Rc4 {[%clk 00:25:40]} {[%emt 00:13:22]} Qe8 {[%clk 00:41:01]} {[%emt 00:10:33]}
20. Bh4 {[%clk 00:21:24]} {[%emt 00:04:46]} Ncd7 {[%clk 00:41:06]} {[%emt
00:00:25]} 21. Nd2 {[%clk 00:20:20]} {[%emt 00:01:35]} d5 {[%clk 00:26:22]}
{[%emt 00:15:15]} 22. exd5 {[%clk 00:17:23]} {[%emt 00:03:26]} Rxc4 {[%clk
00:26:27]} {[%emt 00:00:25]} 23. Nxc4 {[%clk 00:14:46]} {[%emt 00:03:07]} Bc5
{[%clk 00:19:13]} {[%emt 00:07:43]} 24. Ne4 {[%clk 00:12:36]} {[%emt 00:02:41]}
Nxe4 {[%clk 00:19:16]} {[%emt 00:00:28]} 25. Qxe4 {[%clk 00:13:02]} {[%emt
00:00:04]} f6 {[%clk 00:17:20]} {[%emt 00:02:25]} 26. d6 {[%clk 00:12:12]}
{[%emt 00:01:20]} b5 {[%clk 00:15:40]} {[%emt 00:02:10]} 27. axb6 {[%clk
00:11:04]} {[%emt 00:01:38]} Nxb6 {[%clk 00:16:03]} {[%emt 00:00:08]} 28. Nxb6
{[%clk 00:08:36]} {[%emt 00:02:58]} Bxb6 {[%clk 00:16:32]} 29. Qc4+ {[%clk
00:07:15]} {[%emt 00:01:50]} Kh7 {[%clk 00:16:53]} {[%emt 00:00:08]} 30. h3
{[%clk 00:05:32]} {[%emt 00:02:14]} Qb5 {[%clk 00:16:13]} {[%emt 00:01:10]} 31.
Qxb5 {[%clk 00:03:42]} {[%emt 00:02:21]} axb5 {[%clk 00:16:42]} 32. g4 {[%clk
00:03:32]} {[%emt 00:00:40]} Kg8 {[%clk 00:16:06]} {[%emt 00:01:05]} 33. Be1
{[%clk 00:02:27]} {[%emt 00:01:35]} Bc5 {[%clk 00:15:47]} {[%emt 00:00:48]} 34.
d7 {[%clk 00:02:09]} {[%emt 00:00:49]} b4 {[%clk 00:13:08]} {[%emt 00:03:09]}
35. Rd5 {[%clk 00:01:59]} {[%emt 00:00:40]} Be7 {[%clk 00:13:02]} {[%emt
00:00:35]} 36. Bf2 {[%clk 00:02:21]} {[%emt 00:00:08]} Ra8 {[%clk 00:13:12]}
{[%emt 00:00:20]} 37. Bb6 {[%clk 00:02:23]} {[%emt 00:00:29]} Bd8 {[%clk
00:13:39]} {[%emt 00:00:04]} 38. Bc5 {[%clk 00:01:34]} {[%emt 00:01:18]} Ra2
{[%clk 00:10:06]} {[%emt 00:04:03]} 39. Bxb4 {[%clk 00:01:30]} {[%emt
00:00:34]} Rxb2 {[%clk 00:10:28]} {[%emt 00:00:08]} 40. Ba5 {[%clk 00:31:29]}
{[%emt 00:00:31]} Rb8 {[%clk 00:40:26]} {[%emt 00:00:32]} 41. Bxd8 {[%clk
00:31:38]} {[%emt 00:00:22]} Rxd8 {[%clk 00:40:41]} {[%emt 00:00:15]} 42. c4
{[%clk 00:32:03]} {[%emt 00:00:04]} 1-0